Cogmind - Beta 13 @@@ ROGUE MODE // 2024.04.09 @ 13:41:10 Player: Demo Result: Destroyed by C-17 Slicer with Concussive RPG Performance ------------- Evolutions (2) 1000 Regions Visited (7) 1400 Robots Destroyed (6) 30 Value Destroyed (181) 181 Prototype IDs (23) 460 Alien Tech Used (0) 0 Bonus (1205) 1205 TOTAL SCORE: 4276 Bonus ------- Pacifist 270 High Alert Combat Kills 46 Follower Combat Kills 389 Entered Garrisons 200 Aligned with FarCom 300 Cogmind --------- Core Integrity 0/550 Matter 278/300 Energy 140/140 System Corruption 3% Temperature Cool (2) Movement Flying (32) Location -8/Materials Parts ------- > --- POWER (1) -------- Light Deuterium Engine > --- PROPULSION (6) --- Improved Hover Unit Flight Unit Flight Unit Cesium-ion Thruster > --- UTILITY (2) ------ Improved Signal Interpreter Melee Analysis Suite > --- WEAPON (2) ------- Katana Axe > --- INVENTORY (5) ---- Authchip [R/Combat] Authchip [R/Combat] Authchip [R/Combat] Authchip [R/Combat] Rocket Launcher Peak State ------------ > --- POWER ------------ Light Deuterium Engine > --- PROPULSION ------- Improved Hover Unit Flight Unit Flight Unit Flight Unit Cesium-ion Thruster > --- UTILITY ---------- Improved Signal Interpreter Melee Analysis Suite > --- WEAPON ----------- Katana Axe > --- INVENTORY -------- Authchip [R/Combat] Authchip [R/Combat] Authchip [R/Combat] Authchip [R/Combat] Rocket Launcher [Rating: 24] Favorites ----------- Power Light Ion Engine Engine Light Ion Engine Propulsion Light Treads Treads Light Treads Hover Unit Improved Hover Unit Flight Unit Flight Unit Utility Signal Interpreter Processor Signal Interpreter Weapon Mining Laser Energy Gun Heavy Laser Special Weapon Mining Laser Impact Weapon Great Maul Slashing Weapon Katana Build | -11 -10 -10 -10 -9 -8 -8 -8 ------- Run | Yrd Mat Min Exi Min Mat Gar Mat Slots Evolved 4 | . . . . . 4 . . Power . | . . . . . . . . Propulsion 4 | . . . . . 4 . . Utility . | . . . . . . . . Weapon . | . . . . . . . . Parts Attached 18 | 2 1 . 1 . 1 7 6 Power 3 | . . . . . . 1 2 Engine 3 | . . . . . . 1 2 Core . | . . . . . . . . Reactor . | . . . . . . . . Propulsion 7 | 2 . . . . . 3 2 Treads 2 | 2 . . . . . . . Leg . | . . . . . . . . Wheel . | . . . . . . . . Hover 1 | . . . . . . . 1 Flight 4 | . . . . . . 3 1 Utility 3 | . 1 . . . . 1 1 Device . | . . . . . . . . Storage . | . . . . . . . . Processor 3 | . 1 . . . . 1 1 Hackware . | . . . . . . . . Protection . | . . . . . . . . Artifact . | . . . . . . . . Weapon 5 | . . . 1 . 1 2 1 Energy Gun 1 | . . . . . . 1 . Energy Cannon . | . . . . . . . . Ballistic Gun . | . . . . . . . . Ballistic Cannon . | . . . . . . . . Launcher . | . . . . . . . . Special Weapon 1 | . . . 1 . . . . Impact Weapon 1 | . . . . . 1 . . Slashing Weapon 2 | . . . . . . 1 1 Piercing Weapon . | . . . . . . . . Special Melee Weapon . | . . . . . . . . Unidentified Prototypes . | . . . . . . . . Parts Lost 5 | . . . . . . 4 1 Power 1 | . . . . . . 1 . Propulsion 3 | . . . . . . 2 1 Utility . | . . . . . . . . Weapon 1 | . . . . . . 1 . Highest Loss Streak 3 | . . . . . . 3 1 To Critical Strikes . | . . . . . . . . Average Slot Usage (%) 49 | . 39 42 54 57 36 38 77 Engine 1 | . . . . . . 2 6 Treads 15 | . 28 28 28 28 18 6 . Flight 7 | . . . . . . 9 35 Processor 13 | . 11 14 14 14 9 12 18 Special Weapon 6 | . . . 11 14 9 3 . Slashing Weapon 3 | . . . . . . 4 12 Naked Turns . | . . . . . . . . Heaviest Build 11 | . . . 1 1 1 5 11 Greatest Support 17 | 3 3 3 3 3 3 12 17 Greatest Overweight (x) . | . . . . . . . . Average Overweight (x) . | . . . . . . . . Largest Inventory Capacity 5 | 5 5 5 5 5 5 5 5 Average Capacity 5 | 5 5 5 5 5 5 5 5 Most Carried 5 | . 2 3 5 5 5 5 5 Average Carried 4 | . . 2 4 5 5 3 5 Final Capacity 5 | 5 5 5 5 5 5 5 5 Final Carried 5 | . 2 3 5 5 5 5 5 Class Distribution -------------------- 74% | Mutant 16% | Scavenger-Mutant 9% | Scavenger-Sprinter Dominant Class ---------------- Mutant | -10/Materials Mutant | -10/Mines Mutant | -10/Exiles Mutant | -9/Mines Mutant | -8/Materials Mutant | -8/Garrison Scavenger-Sprinter | -8/Materials Resources | -11 -10 -10 -10 -9 -8 -8 -8 ----------- Run | Yrd Mat Min Exi Min Mat Gar Mat Matter Collected 450 | . . . . 30 . 382 38 Remotely . | . . . . . . . . Salvage Created 181 | . . . . . . 114 67 Parts 14 | . . . . . . 6 8 Haulers Intercepted . | . . . . . . . . Recyclers Shooed . | . . . . . . . . Parts Field Recycled . | . . . . . . . . Retrieved Matter . | . . . . . . . . Parts Self-Destructed . | . . . . . . . . Prevented . | . . . . . . . . Kills | -11 -10 -10 -10 -9 -8 -8 -8 ------- Run | Yrd Mat Min Exi Min Mat Gar Mat Combat Hostiles Destroyed 3 | . . . . . . 3 . Melee 2 | . . . . . . 2 . Cannons 1 | . . . . . . 1 . Classes Destroyed 4 | . . . . . . 2 2 Worker 2 | . . . . . . . 2 Watcher 1 | . . . . . . . 1 Grunt 2 | . . . . . . 2 . Programmer 1 | . . . . . . 1 . Best Kill Streak 2 | . . . . . . 2 1 Combat Bots Only 2 | . . . . . . 2 . Max Kills in Single Turn 1 | . . . . . . 1 1 Gunslinging . | . . . . . . . . Exploded . | . . . . . . . . Melee 1 | . . . . . . 1 . Uniques/NPCs Destroyed . | . . . . . . . . Combat | -11 -10 -10 -10 -9 -8 -8 -8 -------- Run | Yrd Mat Min Exi Min Mat Gar Mat Hostile Shots Fired 113 | . 6 . 2 . 2 94 9 Missed 37 | . 3 . . . 1 28 5 Damage Taken 1036 | 8 18 . 30 . 18 889 73 Core 582 | . 12 . 14 . . 544 12 Absorbed by Shields 130 | . . . . . . 130 . Core Remaining (%) 94 | 100 . . . 89 . . . Volleys Fired 15 | . . . . . . 15 . Largest 1 | . . . . . . 1 . Hottest 100 | . . . . . . 100 . Shots Fired 15 | . . . . . . 15 . Gun . | . . . . . . . . Cannon . | . . . . . . . . Launcher . | . . . . . . . . Special 15 | . . . . . . 15 . Kinetic . | . . . . . . . . Thermal 15 | . . . . . . 15 . Explosive . | . . . . . . . . Electromagnetic . | . . . . . . . . Robot Hit Streak 1 | . . . . . . 1 . Robot Miss Streak 1 | . . . . . . 1 . Penetration Max . | . . . . . . . . Secondary Targets . | . . . . . . . . Shots Hit Robots 10 | . . . . . . 7 3 Core Hits 5 | . . . . . . 3 2 Critical Kills . | . . . . . . . . Critical Parts Destroyed . | . . . . . . . . Critical Strikes . | . . . . . . . . Melee Attacks 23 | . . . . . . 13 10 Impact . | . . . . . . . . Slashing 23 | . . . . . . 13 10 Piercing . | . . . . . . . . Sneak Attacks 3 | . . . . . . 1 2 Combat Hostiles 1 | . . . . . . 1 . Follow-up Attacks . | . . . . . . . . Damage Inflicted 450 | 17 . . . . . 263 170 Guns . | . . . . . . . . Cannons . | . . . . . . . . Explosions . | . . . . . . . . Melee 373 | . . . . . . 203 170 Ramming 17 | 17 . . . . . . . Kinetic . | . . . . . . . . Thermal 60 | . . . . . . 60 . Explosive . | . . . . . . . . Electromagnetic . | . . . . . . . . Impact . | . . . . . . . . Slashing 373 | . . . . . . 203 170 Piercing . | . . . . . . . . Highest Corruption 3 | . . . . . . 3 3 Average Corruption 2 | . . . . . . 2 3 Corruption Purged . | . . . . . . . . Corruption Blocked . | . . . . . . . . Effects 11 | . . . . . . 8 3 Matter Fused 2 | . . . . . . 1 1 Heat Flow Errors 5 | . . . . . . 4 1 Energy Discharges 2 | . . . . . . 1 1 Data Loss (minor) 1 | . . . . . . 1 . Data Loss (major) 1 | . . . . . . 1 . Overload Shots . | . . . . . . . . Overflow Damage 39 | . . . . . . 12 27 Projectiles . | . . . . . . . . Explosions . | . . . . . . . . Melee 39 | . . . . . . 12 27 Knockbacks . | . . . . . . . . Impact . | . . . . . . . . Kinetic . | . . . . . . . . Secondary . | . . . . . . . . Self-Inflicted Damage 8 | 8 . . . . . . . Shots . | . . . . . . . . Rammed 1 | 1 . . . . . . . Targets Rammed 1 | 1 . . . . . . . Kicked . | . . . . . . . . Crushed . | . . . . . . . . Highest Temperature 232 | . . . . . . 232 143 Average Temperature 76 | . . . . . . 81 60 Received Heat Transfer 294 | . . . . . . 276 18 Siege Activations . | . . . . . . . . Robots Corrupted . | . . . . . . . . Combat Hostiles . | . . . . . . . . Parts Fried . | . . . . . . . . Impact Corruptions . | . . . . . . . . Robots Melted . | . . . . . . . . Combat Hostiles . | . . . . . . . . Parts Melted . | . . . . . . . . Heat Transferred 100 | . . . . . . 100 . Parts Sabotaged . | . . . . . . . . Parts Stolen . | . . . . . . . . Parts Stripped . | . . . . . . . . Power Chain Reactions . | . . . . . . . . Alert | -11 -10 -10 -10 -9 -8 -8 -8 ------- Run | Yrd Mat Min Exi Min Mat Gar Mat Peak Influence 834 | . 30 11 . . 35 834 535 Initial 413 | . . 11 . . . 22 413 Average 276 | . 8 11 . . 11 383 461 Maximum Alert Level 3 | . . . . . . 3 2 Low Security (%) 54 | 100 100 100 . 100 100 43 . Level 1 1 | . . . . . . 3 . Level 2 33 | . . . . . . 35 100 Level 3 9 | . . . . . . 17 . Level 4 . | . . . . . . . . Level 5 . | . . . . . . . . High Security . | . . . . . . . . Max Security . | . . . . . . . . Squads Dispatched 4 | . 1 . . . . . 3 Investigation 3 | . 1 . . . . . 2 Extermination . | . . . . . . . . Reinforcement 1 | . . . . . . . 1 Assault . | . . . . . . . . Garrison . | . . . . . . . . Intercept . | . . . . . . . . Searches Triggered . | . . . . . . . . Construction Impeded . | . . . . . . . . Haulers Reinforced . | . . . . . . . . Active Scanning Responses . | . . . . . . . . Cargo Convoy Interrupts . | . . . . . . . . Stealth | -11 -10 -10 -10 -9 -8 -8 -8 --------- Run | Yrd Mat Min Exi Min Mat Gar Mat Distress Signals 5 | . 1 . . . . 2 2 Communications Jammed . | . . . . . . . . Distress Signals . | . . . . . . . . Times Spotted 51 | . 6 . 1 . 3 32 9 Peak Tracking Total 16 | . 6 . 1 . 4 16 7 Tactical Retreats 11 | . 1 . . . . 9 1 Traps | -11 -10 -10 -10 -9 -8 -8 -8 ------- Run | Yrd Mat Min Exi Min Mat Gar Mat Traps Triggered 7 | . 1 . . . . 6 . Indirectly . | . . . . . . . . Trap Hack Attempts . | . . . . . . . . Triggered . | . . . . . . . . Disarmed . | . . . . . . . . Reprogrammed . | . . . . . . . . Reused . | . . . . . . . . Traps Extracted . | . . . . . . . . Installed . | . . . . . . . . Triggered . | . . . . . . . . Machines | -11 -10 -10 -10 -9 -8 -8 -8 ---------- Run | Yrd Mat Min Exi Min Mat Gar Mat Machines Disabled . | . . . . . . . . Max in Single Turn . | . . . . . . . . Machines Repaired . | . . . . . . . . Machines Dismantled . | . . . . . . . . Machines Sabotaged . | . . . . . . . . Overloaded Fab Kills . | . . . . . . . . Hacking | -11 -10 -10 -10 -9 -8 -8 -8 --------- Run | Yrd Mat Min Exi Min Mat Gar Mat Machines Accessed 11 | . . . 1 . 2 2 6 Terminals 9 | . . . . . 1 2 6 Fabricators . | . . . . . . . . Repair Stations . | . . . . . . . . Recycling Units . | . . . . . . . . Scanalyzers . | . . . . . . . . Garrison Access 1 | . . . . . 1 . . Total Hacks 26 | . . . 1 . 3 5 17 Successful 14 | . . . 1 . 3 2 8 Failed 12 | . . . . . . 3 9 Catastrophic 1 | . . . . . . 1 . Database Lockouts . | . . . . . . . . Manual 17 | . . . 1 . . 2 14 Terminals 24 | . . . . . 2 5 17 Fabricators . | . . . . . . . . Repair Stations . | . . . . . . . . Recycling Units . | . . . . . . . . Scanalyzers . | . . . . . . . . Garrison Access 1 | . . . . . 1 . . Terminal Hacks 12 | . . . 1 . 2 2 7 Part Schematic 4 | . . . . . . . 4 Branch Access Points 1 | . . . . . . . 1 Emergency Access Points 1 | . . . . . . 1 . Alert Level 1 | . . . . . 1 . . Recall Investigation 1 | . . . . . . . 1 Recall Reinforcements 1 | . . . . . . . 1 Zone Layout 1 | . . . . . 1 . . Patrol Navigation 1 | . . . . . . 1 . Derelict Proto ID Bank 1 | . . . 1 . . . . Fabricator Hacks . | . . . . . . . . Repair Station Hacks . | . . . . . . . . Recycling Unit Hacks . | . . . . . . . . Scanalyzer . | . . . . . . . . Garrison Access Hacks 1 | . . . . . 1 . . Unlock Access 1 | . . . . . 1 . . Unauthorized Hacks 1 | . . . . . . . 1 Terminals 1 | . . . . . . . 1 Assimilate 1 | . . . . . . . 1 Fabricators . | . . . . . . . . Repair Stations . | . . . . . . . . Recycling Units . | . . . . . . . . Scanalyzers . | . . . . . . . . Garrison Access . | . . . . . . . . Data Cores Recovered . | . . . . . . . . Used . | . . . . . . . . Hacking Detections 8 | . . . . . 1 2 5 Full Trace Events 3 | . . . . . . 1 2 Feedback Events . | . . . . . . . . Feedback Blocked . | . . . . . . . . Robot Schematics Acquired . | . . . . . . . . Robots Built . | . . . . . . . . Authchips . | . . . . . . . . Time . | . . . . . . . . Total Robot Build Rating . | . . . . . . . . Part Schematics Acquired 4 | . . . . . . . 4 Parts Built . | . . . . . . . . Authchips . | . . . . . . . . Time . | . . . . . . . . Total Part Build Rating . | . . . . . . . . Parts Repaired . | . . . . . . . . Time . | . . . . . . . . Parts Recycled . | . . . . . . . . Recycled Matter . | . . . . . . . . Retrieved Matter . | . . . . . . . . Retrieved Components . | . . . . . . . . Parts Scanalyzed . | . . . . . . . . Part Schematics Acquired . | . . . . . . . . Parts Damaged . | . . . . . . . . Bothacking | -11 -10 -10 -10 -9 -8 -8 -8 ------------ Run | Yrd Mat Min Exi Min Mat Gar Mat Used RIF Installer . | . . . . . . . . Robots Hacked . | . . . . . . . . Non-combat . | . . . . . . . . Combat . | . . . . . . . . Robot Hacks Applied . | . . . . . . . . Relay Couplers Released . | . . . . . . . . Fabnet Peak Effective % . | . . . . . . . . Robots Rewired . | . . . . . . . . Allies Hacked . | . . . . . . . . Hacks Repelled . | . . . . . . . . Allies | -11 -10 -10 -10 -9 -8 -8 -8 -------- Run | Yrd Mat Min Exi Min Mat Gar Mat Total Allies 1 | . . . . . . . 1 Largest Group 1 | . . . . . . . 1 Highest-Rated Group 10 | . . . . . . . 10 Highest-Rated Ally 10 | . . . . . . . 10 Total Orders 1 | . . . . . . 1 . STAY 1 | . . . . . . 1 . Ally Attacks 39 | . . . . . . 39 . Total Damage 2044 | . . . . . . 2044 . Kills 15 | . . . . . . 15 . Allies Corrupted . | . . . . . . . . Allies Melted . | . . . . . . . . Turrets Deployed 3 | . . . . . . 3 . Intel | -11 -10 -10 -10 -9 -8 -8 -8 ------- Run | Yrd Mat Min Exi Min Mat Gar Mat Robot Analysis Total . | . . . . . . . . Derelict Logs Recovered 1 | . . . . 1 . . . Drone Launches . | . . . . . . . . Drone Recoveries . | . . . . . . . . Exploration | -11 -10 -10 -10 -9 -8 -8 -8 ------------- Run | Yrd Mat Min Exi Min Mat Gar Mat Turns Passed 1839 | 14 47 57 443 285 34 757 202 Spaces Moved 1705 | 20 86 80 274 252 63 639 291 Core 1072 | 20 86 80 274 252 63 297 . Treads . | . . . . . . . . Legs . | . . . . . . . . Wheels . | . . . . . . . . Hover . | . . . . . . . . Flight 633 | . . . . . . 342 291 Fastest Speed 29 | 50 50 50 50 50 50 34 29 Average Speed 43 | 50 50 50 50 50 50 41 29 Slowest Speed 50 | 50 50 50 50 50 50 50 34 Overloaded Moves . | . . . . . . . . Propulsion Burnouts . | . . . . . . . . Robots Hopped 6 | . . . . . . 4 2 Cave-ins Triggered . | . . . . . . . . Exploration Rate (%) 32 | 3 23 21 61 59 16 51 27 Regions Visited 7 Branch Regions 3 Pre-discovered Areas 1 | . . . . 1 . . . Known Exits Taken 5 | . 1 1 1 1 1 . . Unknown Exits Taken 1 | 1 . . . . . . . Scrap Searched 1 | . . . . 1 . . . Spaces Dug 6 | . . . . . . 1 5 Terrain Destroyed 6 | . . . . . . 1 5 Melee 6 | . . . . . . 1 5 Projectile . | . . . . . . . . AOE . | . . . . . . . . Terrain Rammed . | . . . . . . . . Walls Destroyed . | . . . . . . . . Machines Disabled . | . . . . . . . . Actions | -11 -10 -10 -10 -9 -8 -8 -8 --------- Run | Yrd Mat Min Exi Min Mat Gar Mat Total 2707 | 22 88 96 579 410 65 1062 385 Wait 884 | . . 16 302 159 . 328 79 Move 1688 | 19 85 79 273 251 63 630 288 Hop 5 | . . . . . . 4 1 Pick Up 12 | . 2 1 3 . . 6 . Fast Attach 16 | 2 1 . . . 1 7 5 Attach 1 | . . . 1 . . . . Detach . | . . . . . . . . Swap 1 | . . . . . . . 1 Drop 9 | . . . . . 1 7 1 Fire 15 | . . . . . . 15 . Melee 23 | . . . . . . 13 10 Ram 1 | 1 . . . . . . . Kick . | . . . . . . . . Crush . | . . . . . . . . Escape Stasis 52 | . . . . . . 52 . Rewire . | . . . . . . . . Trap . | . . . . . . . . Miscellaneous . | . . . . . . . . Route ------- -11/Scrapyard -10/Materials -10/Mines -10/Exiles -9/Mines -8/Materials -8/Garrison -8/Materials (discovered 2 exits: Sto x2) History --------- Turn | Location | Event 4 | -11/Scrapyard | Discovered new exit (range 15) 15 | -11/Scrapyard | Entered Materials 51 | -10/Materials | Discovered new exit (range 12) 56 | -10/Materials | Identified exit to Mines 62 | -10/Materials | Entered Mines 79 | -10/Mines | Met a Derelict bent on vengeance 84 | -10/Mines | Received a Rocket Launcher from a helpful Derelict 117 | -10/Mines | Deemed a non-threat by the Exiles lab entrance 117 | -10/Mines | Discovered new exit (range 5) 118 | -10/Mines | Identified exit to Exiles 119 | -10/Mines | Entered Exiles 132 | -10/Exiles | Met 8R-AWN 140 | -10/Exiles | Met EX-HEX 156 | -10/Exiles | Met EX-BIN 162 | -10/Exiles | Aligned with FarCom system 163 | -10/Exiles | Given EX-Vault access code 176 | -10/Exiles | Opened EX-Vault 178 | -10/Exiles | Found Deploy-a-Sentry 180 | -10/Exiles | Found Deploy-a-Sentry 182 | -10/Exiles | Found Deploy-a-Sentry 194 | -10/Exiles | Warned to stay clear of 0b10 Research branches 201 | -10/Exiles | Exiles lab attacked by MAIN.C 316 | -10/Exiles | Build established: Mutant 347 | -10/Exiles | Discovered new exit (range 14) 356 | -10/Exiles | Identified exit to Mines 562 | -10/Exiles | Left Exiles lab with Deploy-a-Sentry 562 | -10/Exiles | Entered Mines 663 | -9/Mines | Learned Materials trap positions 664 | -9/Mines | Learned location of Storage (-8) 837 | -9/Mines | Discovered new exit (range 11) 842 | -9/Mines | Identified exit to Materials 847 | -9/Mines | Entered Materials 847 | -8/Materials | Evolved 4 slots: Propulsion x4 848 | -8/Materials | Loaded intel: 15 trap records 881 | -8/Materials | Identified exit to Garrison 881 | -8/Materials | Entered Garrison 1122 | -8/Garrison | Triggered checkpoint 1156 | -8/Garrison | Triggered checkpoint 1187 | -8/Garrison | Core integrity fell below 50% 1200 | -8/Garrison | Lost 3 parts (2n1w) 1213 | -8/Garrison | Core integrity fell below 20% 1214 | -8/Garrison | DAS Turret deployed 1215 | -8/Garrison | DAS Turret deployed 1220 | -8/Garrison | DAS Turret deployed 1400 | -8/Garrison | Triggered checkpoint 1518 | -8/Garrison | Triggered checkpoint 1598 | -8/Garrison | Discovered new exit (range 12) 1601 | -8/Garrison | Identified exit to Materials 1638 | -8/Garrison | Entered Materials 1827 | -8/Materials | Identified exit to Storage 1840 | -8/Materials | Destroyed by C-17 Slicer with Concussive RPG Last Messages --------------- 01818_ Connecting with Terminal... 01818_ ALERT: Suspicious activity at Terminal M002. Dispatching Investigation squad. 01821_ Connecting with Terminal... >>Recall(Reinforcements) Establishing remote squad link... Recalled reinforcement squad PLAC0OS2YE. 01827_ Connecting with Terminal... >>Access(Branch) Found 2 branch access points: (16,38) Storage (37,90) Storage Map updated. 01827_ ALERT: Suspicious activity at Terminal M011. Dispatching Investigation squad. 01829_ Technician 3a reveals location of Alarm Trap. 01836_ U-05 Engineer lays Concrete. 01839_ U-05 Engineer builds a Wall. 01839_ Flight Unit destroyed. Map ----- +----------------------------------------------------+ | ????????????????????????# #??# ## ##????? | | ???????????????##########*#??# "" """ ## ####??? | | ???????????????# + #??# "T """ ## !##?? | | ???????????????# """ # ##?# "" """ ## !#?? | | ???????????????# """ ## ## !#?? | | ???????????????# """ ## """ ## !#?? | | ???????????????# + """ ## !#?? | | ???????????????# ## ! """ ## !##?? | | ???????????????# "T" # ## ## ####??? | | ???????????????# """ # #######+#### #?????? | | ???????????????# #= Y #?????? | | ???????????????####+##### #?????? | | ??????????????## # //! #?????? | | ??????????????## T """" # //! ###+####????? | | ??????????????## """" # / # #????? | | ???????????????# """" # + """ #????? | | ???????????????#! + ##### """ #????? | | ??????????????## """" # g #???# """ #????? | | ??????????????## """" # c### ##???#= """ #????? | | ??????????????## """" # #?# #????# #????? | | ???????????????# # #?# #????########????? | | ??????????????########### #?# #????????????????? | | ??????????????#####?????# #?#g#????????????????? | | ????????????????????????# ###/#####????????????? | | ????????????????????????# ## #????????????? | | ????????????????????????#@ ## #????????????? | | ????????????????????????# ##g #????????????? | | ???????????????????????? # "T" #????????????? | | ???????????????????????## #g""" #????????????? | | ????????????????????????# # #????????????? | | ???????????????????????? ##+#####????????????? | | ???????????????????????? ???????????????????? | | ???????????????????>???# Y ??????????????????? | | ???????????????????????# ?H???????????????? | | ???????????????????????# ###?????????????????? | | ???????????????????????#######???????????????????? | | ?????????????????????????????????????????????????? | | ?????????????????????????????????????????????????? | | ?????????????????????????????????????????????????? | | ?????????????????????????????????????????????????? | | ?????????????????????????????????????????????????? | | ?????????????????????????????????????????????????? | | | | | | | | | | | | | | | | | +----------------------------------------------------+ Best States ------------- Heat Dissipation 31 Energy Generation 14 Energy Capacity 275 Matter Stores 300 Matter Capacity 300 Sight Range 16 Terrain Scan Density 10 Evasion (%) 64 Melee Accuracy 5 Authchip Count 4 Item Schematics ----------------- Propulsion Shielding | -8/Materials | Hacked VTOL Module | -8/Materials | Hacked Hacking Suite | -8/Materials | Hacked System Shield | -8/Materials | Hacked Robot Schematics ------------------ None Fabricated ------------ Nothing Alien Tech Used ----------------- None Achievements -------------- None Challenges ------------ None Game ------ Seed ThunderAlloyEdition Manual? 0 Play Time 00:14:45 Cumulative 65.2 hours Start 2024.04.09 @ 13:26:55 End 2024.04.09 @ 13:41:10 Sessions 1 Manual Loads 0 Difficulty Rogue Special Mode None Game No. 79 Rogue 79 Adventurer 0 Explorer 0 Win Type - Total 0 Types 0/0/0/0/0/0/0/0/0 Lore% 42 Gallery% 60 Achievement% 48 Wizard Run 0 Options --------- Layout 1 ASCII 0 Keyboard 0 Movement Numpad Keybinds 0 Fullscreen 1 Font 24/Smallcaps Map View 50x35 Zoom Use 0% Tactical HUD 1 Map Filters NONE Filters NONE Steam 1 RUN: 0c5eb4e0-918e-42d4-9c78-3c7b0d03d465